{"text_format":"1","workbook":"xlsx","n_sheets":18,"sheets":["identifikacija_obrazca","navodila-BRISATIi!","stranka","pooblasc","vrsta_vloge","opis_postopka","ODP_obvezne_priloge","ODP_druga_dok","priloga1","sifrant_materialov","sifrant_obcin","XODP_sifrant_nenevarnih_odp","XODP_sifrant_nevarnih_odp","ODP_sifrant_prilog","priloga2","priloga3","prevent_share","sifrant_ostalo"],"not_rendered":{"charts":0,"images":1,"macros":1,"external_links":1,"defined_names":65,"comments":5,"pivot_tables":0},"unopened":[],"bounds":{"document_bytes":16777216,"sheet_cells":100000,"rows_first":2000,"rows_last":500,"rows_between":2000,"halvings":0,"cell_chars":16384,"cell_head_chars":4096},"cells_cut":0,"cells_raw":0,"read":"whole","date_system":"1900"}

{"sheet":"identifikacija_obrazca","index":0,"n_rows":36,"n_cols":4,"rows_kept":36,"cut":false,"hidden":true,"merged":[[26,3,26,18],[27,3,27,18],[24,3,24,18],[23,3,23,18],[0,0,0,14],[5,1,5,14],[8,3,8,18],[7,3,7,18],[25,3,25,18]]}
["Pozor: ti podatki so namenjeni identifikaciji obrazca. Vsaka oseba iz ARSO ali izvajalec za ARSO, ki spreminja elemente v tem obrazcu je dolžan uskladiti številko verzije, dopisati spremembe in podake o avtorju sprememb in skoordinirati, da se ta verzija odloži na za to predvideno mesto. Prav tako je dolžan skoordinirati, da so o novi verziji obveščene ustrezne osebe."]
["Tip obrazca:","VLOGA_AZBEST",null,"Ta naziv za ta tip vloge ostane vedno isti"]
["Verzija:","1.10",null,"To verzijo je potrebno spremeniti, če se delajo spremembe obrazca (če samo spremembe label, se poviša le druga številka, če kakršnekoli strukturne spremembe ali kontrole, se poviša prva)"]
["Datum zadnje spremembe:","2017-08-30",null,"To je potrebno spremeniti ob spremembi"]
["Oseba, ki je izvedla zadnjo spremembo","Sašo Celarc"]
[]
[]
["Opis sprememb:","Andreja Vihtelič","2017-07-12","Priprava obrazca vloge za azbest na podlagi obrazca vloge za zemljine  (Zemljine_DRAFT_1_12.xlsm)"]
[null,"Andreja Vihtelič","2017-07-12","Odstranitev nepotrebnih listov"]
[null,"Andreja Vihtelič","2017-07-12","Na listu vrsta_vloge dodano: Okoljevarstveno dovoljenje želimo pridobiti za odstranjevanje naslednje vrste izdelkov (izbira da ali ne)"]
[null,"Andreja Vihtelič","2017-07-12","Dodan list opis_postopka"]
[null,"Andreja Vihtelič","2017-07-12","Popravek območja v range-u SIFRE_NAZIVI_PRILOG"]
[null,"Sašo Celarc","2017-07-24","Na listu ODP_obvezne_priloge sem popravil formulo, da jemlje SPG_ID iz stolpca 3, da se pravilno poveže z podatki v bazi (prej smo jemali iz stolpca 2, kar pa ni bilo ok)"]
[null,"Marjana-Andreja","2017-07-24","Na listu vrsta_vloge dodana celica B16 in C16"]
[null,"Andreja Vihtelič","2017-07-24","Na listu ODP_sifrant_prilog sem v stolpcu E oštevilčila nazive prilog"]
[null,"Andreja Vihtelič","2017-07-24","Na listu ODP_obvezne_priloge sem skrila stolpec D."]
[null,"Marjana","2017-08-11","na listu vrsta_vloge popravljen tekst v B11 in tekst v B13, B14, B16 in B16 in dodan tekst v B19 in B36, dodana možnost izbire iz treh spustnih seznamov iz zavihka šifrant_ostalo"]
[null,"Marjana","2017-08-11","na listi šifrant_ostalo dodan tekst v vrsticah 30-32, 39-49 in 51-54"]
[null,"Marjana","2017-08-11","na list stranka dodana možnost izbire iz spustnega seznama v celici K24"]
[null,"Marjana","2017-08-11","izbrisani zavihki ODP_sifrant_r_d, ODP_sifrant_razr_do_31_12_2017 in ODP_sifrant_razr_od_1_1_2018"]
[null,"Marjana","2017-08-11","zavihek navodila-BRISATI smo za enkrat skrili, prav tako smo skrili zavihke s šifranti"]
[null,"Andreja Vihtelič","2017-08-11","Popravki na zavihku sifrant_ostalo, namesto vejic so podpičja"]
[null,"Marjana","2017-08-16","na list stranka dodan tekst v celico B11, del teksta iz B12 prenesen v B13"]
[null,"Marjana","2017-08-16","na listu vrsta vloge dodano oblikovanje celic v C16 do C18"]
[null,"Marjana","2017-08-16","na listi ODP_obvezne_priloga izbrisane vrstice B13 do B34"]
[null,"Marjana","2017-08-16","na listi vrsta_vloge spremenjana širina stolpca B in C, spremenjena nastavitev printanja, pri zaščiti lista dodana možnost oblikovanja vrstice"]
[null,"Marjana","2017-08-16","na listu opis_postopka sprememba teksta v B2, doddana opomba v celico B3, spremenjena nastavitev printanja, pri zaščiti lista dodana možnost oblikovanja vrstice"]
[null,"Marjana","2017-08-16","na listu ODP_obvezne_priloge oblikovana pripomba"]
[null,"Marjana","2017-08-16","popravki fontov na vseh listih nna Arial"]
[null,"Marjana","2017-08-16"]
[null,"Sašo Celarc","2017-08-30","Listom, ki pomojem niso potrebni in samo obremenjujejo ta excel, sem dal predpono X in bi jih bilo dobro zbrisati"]
[null,"Sašo Celarc","2017-08-30","Uredil macroje za grupno ščitenje/odščitenje, prikazovanje/skrivanje zavihkov"]
[null,"Sašo Celarc","2017-08-30","Skril stolpce (Hide) v katerih so vlookup formule za ovrednotenje IDjev vrsta_vloge - stolpec D, ODP_obvezne_priloge - stolpec D"]
[null,"Sašo Celarc","2017-08-30","Preveril, da deluje dodajanje vrstice z gumbom na listu ODP_druga_dok"]
[null,"Monolit","2018-09-17","Spremembe glede na pogodbo 2551-18-100468"]
[null,"Monolit","2018-09-27","sprememba lable na gumbu v Dodaj vrstico/vrstice"]

{"sheet":"navodila-BRISATIi!","index":1,"n_rows":70,"n_cols":2,"rows_kept":70,"cut":false,"hidden":true,"merged":[[1,0,1,1]]}
[]
["Navodila  za izpolnjevanje obrazca VLOGA ZA IZDAJO/SPREMEMBO SPREMEMBO OKOLJEVARSTVENEGA DOVOLJENJA ZA PREDELAVO/ODSTRANJEVANJE ODPADKOV"]
[]
["Zakonodajna osnova"]
[null,"38. člen Uredbe o odpadkih (UL RS, št. 37/15 in 69/15) določa, da izvajalec obdelave lahko obdeluje odpadke, če ima okoljevarstveno dovoljenje za predelavo ali odstranjevanje odpadkov v skladu z zakonom, ki ureja varstvo okolja. Vloga za pridobitev okoljevarstvenega dovoljenja se vloži na podlagi 83. člena Zakona o varstvu okolja  (Uradni list RS, št. 39/06 – uradno prečiščeno besedilo, 49/06 – ZMetD, 66/06 – odl. US, 33/07 – ZPNačrt, 57/08 – ZFO-1A, 70/08, 108/09, 108/09 – ZPNačrt-A, 48/12, 57/12, 92/13, 56/15, 102/15 in 30/16, v nadaljevanju ZVO) in 39. člena Uredbe o odpadkih (Uradni list RS, št. 37/15 in 69/15). Ministrstvo izvajalca obdelave, ki mu izda okoljevarstveno dovoljenje iz prvega odstavka 38. člena navedenega predpisa, po uradni dolžnosti vpiše v evidenco izvajalcev obdelave, ki jo vodi v okviru evidence oseb, ki imajo okoljevarstveno dovoljenje, v skladu z zakonom, ki ureja varstvo okolja. "]
["Namen"]
[null,"Obrazec je namenjen pripravi vloge za pridobitev/spremembo okoljevarstvenega dovoljenja za predelavo ali odstranjevanje odpadkov, v skladu z ZVO."]
["Definicije pojmov, uporabljenih v obrazcu"]
[null,"Vsebina obrazca je usklajena s tistimi določili 38. in 39. člena Uredbe o odpadkih (UL RS, št. 37/15 in 69/15), ki določajo vsebino vloge za pridobitev okoljevarstvenega dovoljenja za predelavo/odstranjevanje odpadkov ter v skladu z ZVO glede spremembe okoljevarstvenega dovoljenja."]
["Splošna navodila za izpolnjevanje obrazca"]
[null,"Obrazec, ki je dostopen na spletni strani Agencije RS za okolje (http://www.arso.gov.si/varstvo%20okolja/odpadki/obrazci/) pod rubriko \"Ravnanje z odpadki - splošno\" shranite na svoj računalnik. "]
[null,"Ko obrazec odprete kliknite na gumb \"Omogoči vsebino\" pri varnostnem opozorilu in potrdite, da želite spremeniti to datoteko v zaupanja vreden dokument."]
[null,"Navedeni podatki v obrazcu vloge naj izkazujejo stanje glede vrste vloge, glede vrste in lokacije naprave, glede seznama in lokacij tehnoloških enot, glede števila in vrste odpadkov, ki se bodo obdelovali v skladu z določbami predpisa o ravnanju z odpadki ter v skladu s predpisi, ki urejajo ravnanje s posamezno vrsto odpadkov ali urejajo posamezen postopek obdelave odpadkov."]
[null,"Vnos podatkov je mogoč le v celice, ki nimajo senčenega ozadja."]
[null,"Obvezno je potrebno izpolniti podatke na zavihkih od \"stranka\" do vključno \"ODP_lokacije_teh_enot\", razen na zavihku \"pooblasc\", če vas ne zastopa pooblaščenec. Obvezno je potrebno izpolniti tudi podatke na zavihku \"ODP_obvezne_priloge\" in na zavihku \"upravna_taksa\". Zavihke od \"ODP_nenevarni_odpadki\" do vključno z zavihkom \"ODP_druga_dok\" je potrebno izpolniti glede na vrsto vložene vloge."]
[null,"Ko vnesete podatke v obrazec, ga shranite kot datoteko xlsx pod nazivom Vloga_OVD_maticna-vasega podjetja.xlsx (npr.: vloga_OVD_1234567000.xlsx). V primeru prejšnjih verzij Excela do 2003 je končnica v imenu datoteke xls."]
[null,"Natisnite tiste zavihke izpolnjenega obrazca, v katere ste vnesli podatke. S strani zakonitega zastopnika ali pooblaščenca podpisano papirno obliko vloge, vključno z obveznimi prilogami (v skladu z določili Uredbe o odpadkih, objavljene v UL RS, št. 37/15 in 69/15 ter v s skladu z drugimi predpisi s področja odpadkov) pošljite na naslov: ARSO, Vojkova 1b, 1000 Ljubljana s pripisom: vloga za pridobitev okoljevarstvenega dovoljenja.  Datoteko v Excelu pa pošljite na e-naslov: gp.arso@gov.si."]
[null,"Pri vnosu podatkov v zavihkih, kjer je potrebno vnestii zap. št. teh. enote po vnosu številke v celico, pritisnite Enter."]
["Navodila za izpolnjevanje posameznega zavihka obrazca"]
["Vnesite podatke v zavihke obrazca glede na vrsto vloge. Za nakatere celice v posameznih zavihkih so spodaj navedena podrobnejša navodila."]
["Zavihek \"stranka\""]
[null,"Izberite občino iz spustnega seznama (ob kliku na celico E16, se pojavi na desnem robu celice puščica, kliknite nanjo in izberite ustrezno občino)."]
[null,"Vnesite 8 mestno davčno številko."]
[null,"Vnesite 10 mestno matično številko (s tremi ničlami na koncu)."]
[null,"Vnesite podatek za registracijo dejavnosti - navedite šifro kategorije po Standarni klasifikaciji dejavnosti."]
["Zavihek \"pooblasc\"- vnesite le, če vas zastopa pooblaščenec"]
[null,"Vnesite 8 mestno davčno številko."]
[null,"Vnesite 10 mestno matično številko (s tremi ničlami na koncu)."]
[null,"Če je pooplaščenec fizična oseba, davčne in matične številke ni potrebno vnesti."]
["Zavihek \"vrsta_vloge\""]
[null,"Izberite vrsto vloge iz spustnega seznama (ob kliku na celico C4, se pojavi na desnem robu celice puščica, kliknite nanjo in izberite ustrezno)."]
[null,"V primeru izbire \"sprememba OVD\" v celici C4 vnesite podatke v celice C5, C6 in ev. v C7."]
["Zavihek \"naprava\""]
[null,"Naziv naprave opredelite z njenim imenom."]
[null,"Izberite vrsto naprave iz spustnega seznama (ob kliku na celico C5, se pojavi na desnem robu celice puščica, kliknite nanjo in izberite ustrezno)."]
[null,"Vnesite naslov naprave, če je le ta različen od vašega naslova. Izberite občino iz spustnega seznama (ob kliku na celico C7, se pojavi na desnem robu celice puščica, kliknite nanjo in izberite ustrezno občino)."]
[null,"Vnesite podatke o zmogljivosti naprave (celici C13 in C14), pri čemer je dejanska zmogljivost naprave zmogljivost, za katero vlagate vlogo. Vnesite podatke o lokaciji naprave (naziv katasterske občine, številka katasterske občine ter številka parcele).  Pred vnosom v obrazec obvezno preverite podatke v zemljiškem katastru, saj se podatki lahko spreminjajo."]
["Zavihek \"seznam_teh_enot\""]
[null,"Vnesite zaporedno številko in naziv posamezne tehnološke enote. Za vsako navedeno tehnološko v stolpcih  D, E in F izberite iz spustnega seznama da ali ne (ob kliku na posamezno celico v navedih stolpcih, se pojavi na desnem robu celice puščica, kliknite nanjo in izberite ustrezno)."]
["Zavihek \"ODP_teh_enote\""]
[null,"S klikom na gumb \"Prenesi enote za odpadke\" se bodo prenesli podatki o zaporednih številkah in nazivih tistih tehnoloških enot, pri katerih ste v zavihku \"seznem_teh_enot\" v stolpcu F za posamezno enoto izbrali \"da\"."]
[null,"Za posamezno tehnološko enoto vnesite ostale podatke. Ob kliku na posamezno celico v izbirnih stolpcih E in U se pojavi na desnem robu celice puščica, kliknite nanjo in izberite ustrezno iz seznama). Po potrebi prilagodite višino vrstice."]
["Zavihek \"ODP_lokacije_teh_enot\""]
[null,"V B stolpcu vnesite zaporedne ševilke tehnoloških enot ter vnesite ostale podatke glede na vrsto vloge. Zaporedna številka tehnološke enote se vstolpcu B ponovi tolikokrat, kolikor je parcelnih številk za posamezno tehnološko enoto."]
[null,"Ob kliku na posamezno celico v stolpcu I se pojavi na desnem robu celice puščica, kliknite nanjo in izberite ustrezno iz seznama."]
["Zavihek \"nenevarni_odpadki\""]
[null,"V B stolpcu vnesite zaporedne ševilke tehnoloških enot ter vnesite ostale podatke glede na vrsto vloge. Zaporedna številka tehnološke enote se vstolpcu B ponovi tolikokrat, kolikor je odpadkov, ki se bodo obdelovali v posamezni tehnološki enoti."]
[null,"Za vsako tehnološko enoto vnesite nenevarne odpadke tako, da so številke odpadkov urejene (najmanjša naj bo zgoraj). Odpadek izberete s klikom na celico v stolpcu C, na desnem robu celice se pojavi puščica, kliknete nanjo in iz spustnega seznama izberite ustrezni odpadek (podatki v stolpcih C in D se zapolnijo sami, glede na izbiro številke odpadka)."]
[null,"Postopek obdelave  izberete s klikom na celico v stolpcu F, na desnem robu celice se pojavi puščica, kliknete nanjo in iz spustnega seznama izberite ustrezni  postopek. "]
[null,"Kot izvor odpadka opredelite sledeče: povzročitelj ali zbiralec ali obdelovalec ali tujina ali kombinacija navedenega (ločiti z vejico in presledkom)"]
[null,"Če imate več tehnoloških enot in enake odpadke v njih, lahko vnesete odpadke najprej za  prvo tehnološko enoto, nato pa te kopirate. Pri kopiranju v zavihkih ODP_nenevarni_odpadki in ODP_nevarni_odpadki označite le podatke v stolpcu C in jih kopirajte v prazne celice spodaj. Vsebino v praznih celicah v stolpcu B  vnesite tako, da označite blok celic, kjer boste vnesli novo zap.št. tehnološke enote, sledi vnos številke tehnološke enote in potrditev vnosa s CTRL+Enter.  Če imate vrstic z zap. št. tehnoloških enot in odpadki več kot je na voljo vrstic v tabeli posameznega zavihka, je potrebno pred kopiranjem najprej s kliki na gumb Dodaj vrstico dodati toliko vrstic, kot jih potrebujete za vnos podatkov."]
[null,"Po potrebi prilagodite višine vrstic."]
["Zavihek \"nevarni_odpadki\""]
[null,"V B stolpcu vnesite zaporedne ševilke tehnoloških enot ter vnesite ostale podatke glede na vrsto vloge. Zaporedna številka tehnološke enote se vstolpcu B ponovi tolikokrat, kolikor je odpadkov, ki se bodo obdelovali v posamezni tehnološki enoti."]
[null,"Za vsako tehnološko enoto  vnesite nevarne odpadke tako, da so številke odpadkov urejene (najmanjša naj bo zgoraj). Odpadek izberete s klikom na celico v stolpcu C, na desnem robu celice se pojavi puščica, kliknete nanjo in iz spustnega seznama izberite ustrezni odpadek (podatki v stolpcih C in D se zapolnijo sami, glede na izbiro številke odpadka)."]
[null,"Postopek obdelave  izberete s klikom na celico v stolpcu F, na desnem robu celice se pojavi puščica, kliknete nanjo in iz spustnega seznama izberite ustrezni  postopek. "]
[null,"Kot izvor odpadka opredelite sledeče: povzročitelj ali zbiralec ali obdelovalec ali tujina ali kombinacija navedenega (ločiti z vejico in presledkom)"]
[null,"Če imate več tehnoloških enot in enake odpadke v njih, lahko vnesete odpadke najprej za  prvo tehnološko enoto, nato pa te kopirate. Pri kopiranju v zavihkih ODP_nenevarni_odpadki in ODP_nevarni_odpadki označite le podatke v stolpcu C in jih kopirajte v prazne celice spodaj. Vsebino v praznih celicah v stolpcu B  vnesite tako, da označite blok celic, kjer boste vnesli novo zap.št. tehnološke enote, sledi vnos številke tehnološke enote in potrditev vnosa s CTRL+Enter.  Če imate vrstic z zap. št. tehnoloških enot in odpadki več kot je na voljo vrstic v tabeli posameznega zavihka, je potrebno pred kopiranjem najprej s kliki na gumb Dodaj vrstico dodati toliko vrstic, kot jih potrebujete za vnos podatkov."]
[null,"Po potrebi prilagodite višine vrstic."]
["Ostali Zavihki \"ODP_...\""]
[null,"Glede na vrsto vloge za obdelavo odpadkov izpolnite tudi ostale zavihke, pri katerih je naziv zavihka opredeljen z \"ODP_...\"."]
["Zavihek \"obvezne_priloge\""]
[null,"V stolpcu C kliknite v celico, na desni se pojavi puščica, kliknite nanjo in izberite ustrezno prilogo."]
["Zavihek \"5_druga_dokazila\""]
[null,"V primeru, da boste k vlogi priložili še druga dokazila, ki niso navedena v zavihku \"obvezne_priloge\", jih navedite tu za vsako tehnološko enoto posebej."]
[null,"V stolpec B vnesite številke od 1 naprej, odvisno od števila tehnoloških enot. Zaporedna številka tehnološke enote naj se ponovi tolikokrat, kolikor različnih dokazil boste predložili za posamezno tehnološko enoto."]
["Zavihek \"up_taksa\""]
[null,"Vnesite podatke v celice B12, J15, C21 in H21.  V celico H21 vnesite datum po 1.1.2016. Zakoniti zastopnik ali pooblaščenec se podpiše na tiskano obliko obrazca vloge."]
[]
[null,"Zdenka predlog: zavihek z navodili ni potreben"]

{"sheet":"stranka","index":2,"n_rows":52,"n_cols":18,"rows_kept":52,"cut":false,"hidden":false,"merged":[[0,1,8,13],[41,9,41,12],[43,9,43,12],[49,2,49,5],[49,7,49,8],[30,1,30,13],[32,1,32,13],[34,1,34,13],[38,1,38,4],[39,2,39,4],[40,1,40,4],[25,1,25,3],[25,4,25,13],[26,2,26,3],[26,4,26,13],[27,2,27,3],[27,4,27,13],[22,1,22,3],[22,4,22,13],[23,1,23,9],[23,10,23,13],[24,1,24,3],[24,4,24,13],[21,1,21,3],[21,4,21,13],[14,1,14,13],[15,4,15,13],[16,2,16,3],[16,4,16,13],[17,2,17,3],[17,4,17,13],[18,2,18,3],[18,4,18,13],[19,2,19,3],[19,4,19,13],[20,10,20,13],[9,1,9,13],[10,1,10,13],[11,1,11,13],[12,1,12,13],[13,1,13,3],[13,4,13,13]]}
[]
[]
[]
[]
[]
[]
[]
[]
[]
[null,"VLOGA ZA IZDAJO / SPREMEMBO OKOLJEVARSTVENEGA DOVOLJENJA ZA ODSTRANJEVANJE AZBESTA"]
[null,"na podlagi drugega odstavka 127. člena Zakona o varstvu okolja(Uradni list RS, št. 44/22 in 18/23 – ZDU-1O) in 6. člena Uredbe o pogojih, pod katerimi se lahko pri rekonstrukciji ali odstranitvi objektov in pri vzdrževalnih delih na objektih, instalacijah ali napravah odstranjujejo materiali, ki vsebujejo azbest (Uradni list RS št. 60/06 in 44/22 - ZVO-2)"]
[null,"Podatki o stranki                                                                          ",null,null,null,null,null,null,null,null,null,null,null,null,null,null,"Če se upravna taksa plača na podračun Ministrstva za okolje, podnebje in energijo, se znesek upravne takse - državne (namen plačila) nakaže na račun št. 0110-0100-0315-637, referenca 11 25704-7111002-35451","."]
[null,"PRED VNOSOM PODATKOV KLIKNITE NA GUMB \"Omogoči vsebino\" POLEG VARNOSTNEGA OPOZORILA POD MENIJSKO VRSTICO, DA OMOGOČITE IZVAJANJE MAKROJEV, ČE TO NI OMOGOČENO. POTRDITE, DA ŽELITE SPREMENITI TO DATOTEKO V ZAUPANJA VREDEN DOKUMENT.",null,null,null,null,null,null,null,null,null,null,null,null,null,null,{"$f":"MID(YEAR(TODAY()),2,4)","v":"023"},"."]
[null," NAZIV stranke:"]
[null," Naslov stranke"]
[null,null,"občina:"]
[null,null,"naselje:"]
[null,null,"ulica:"]
[null,null,"hišna številka:"]
[null,null,"ime pošte:"]
[null,null,"poštna številka:",null," "," "," "," "]
[null,"Davčna številka:"]
[null,"Matična številka:"]
[null,"Registracija za izvajanje dejavnosti (SKD):"]
[null,"Zakoniti zastopnik:"]
[null,"Kontaktna oseba:"]
[null,null,"telefon:"]
[null,null,"e-naslov:"]
[]
[]
[null,"Upravna taksa:"]
[]
[null,"Za vlogo je potrebno v skladu s tar.št. 1 in št. 3 taksne tarife Zakona o upravnih taksah (Uradni list RS, št. 106/10-UPB, 14/15-ZUUJFO, 84/15-ZZelP-J, 32/16, 30/18-ZKZaš in 189/20-ZFRO) plačati upravno takso v višini 22,60 EUR. Upravno takso se plača v gotovini ali z drugim veljavnim plačilnim instrumentom in o plačilu predloži ustrezno potrdilo."]
[]
[null,{"$f":"Q12&Q13&\".\"","v":"Če se upravna taksa plača na podračun Ministrstva za okolje, podnebje in energijo, se znesek upravne takse - državne (namen plačila) nakaže na račun št. 0110-0100-0315-637, referenca 11 25704-7111002-35451023."}]
[]
[]
[]
[null,"vlogo pripravil-a:"]
[]
[]
[null,null,null,null,null,null,null,null,null,"podpis zakonitega zastopnika ali pooblaščenca"]
[]
[]
[]
[]
[]
[]
[]
[null,"V/Na",null,null,null,null," , dne"]
[]
[null,"2023-07-05",null,null,null,null,null,null,null,null,null,35451]

{"sheet":"pooblasc","index":3,"n_rows":16,"n_cols":8,"rows_kept":16,"cut":false,"hidden":false,"merged":[[1,1,1,13],[2,1,2,13],[3,1,3,3],[3,4,3,13],[4,1,4,3],[4,4,4,13],[11,1,11,3],[11,4,11,13],[5,2,5,3],[5,4,5,13],[6,2,6,3],[6,4,6,13],[7,2,7,3],[7,4,7,13],[8,2,8,3],[8,4,8,13],[9,10,9,13],[10,1,10,3],[10,4,10,13],[15,2,15,3],[15,4,15,13],[12,1,12,3],[12,4,12,13],[13,1,13,3],[13,4,13,13],[14,2,14,3],[14,4,14,13]]}
[]
[null,"Podatki o pooblaščencu, ki zastopa stranko"]
[]
[null," Ime oz. naziv pooblaščenca:"]
[null," Naslov oziroma sedež:"]
[null,null,"naselje:"]
[null,null,"ulica:"]
[null,null,"hišna številka:"]
[null,null,"pošta:"]
[null,null,"poštna številka:",null,null," "," "," "]
[null,"Davčna številka:"]
[null,"Matična številka:"]
[null,"Zakoniti zastopnik:"]
[null,"Kontaktna oseba:"]
[null,null,"telefon:"]
[null,null,"e-naslov:"]

{"sheet":"vrsta_vloge","index":4,"n_rows":43,"n_cols":4,"rows_kept":43,"cut":false,"hidden":false,"merged":[[1,1,1,2],[10,1,10,2],[39,1,39,2],[40,1,40,2],[42,1,42,2]]}
[]
[null,"Vrsta vloge"]
[]
[null,"Vrsta vloge - ustrezno izbrati iz spustnega seznama:"]
[null,"Številka prvega OVD"]
[null,"Datum izdaje prvega OVD:"]
[null,"Št. in datumi izdaje odločb o spremembi:"]
[null,"Opis spremembe:"]
[]
[]
[null,"Okoljevarstveno dovoljenje želimo pridobiti za odstranjevanje naslednje vrste izdelkov"]
[]
[null,"Azbest cementnih izdelkov in ostalih izdelkov, navedenih v prilogi 3 Uredbe*"]
[null,"Materialov, ki vsebujejo šibko vezani azbest, navedenih v prilogi 1 Uredbe**"]
[null,"Posameznih vrst materialov, ki vsebujejo azbest, navedenih v prilogi 2 Uredbe***","da"]
[null," * izberite iz seznama, v primeru izbire \"da\" v celici C13",null,{"$f":"IF(ISNA(VLOOKUP(C16,SIFRANT_MATERIALOV_CELOTA,3,FALSE)),\"\",VLOOKUP(C16,SIFRANT_MATERIALOV_CELOTA,3,FALSE))","v":""}]
[null,null,null,""]
[null,null,null,""]
[null," ** izberite iz seznama, v primeru izbire \"da\" v celici C14",null,""]
[null,null,null,""]
[null,null,null,""]
[null,null,null,""]
[null,null,null,""]
[null,null,null,""]
[null,null,null,""]
[null,null,null,""]
[null,null,null,""]
[null,null,null,""]
[null,null,null,""]
[null,null,null,""]
[null,null,null,""]
[null,null,null,""]
[null,null,null,""]
[null,null,null,""]
[null," *** izberite iz seznama, v primeru izbire \"da\" v celici C15","1. Plošče velikega formata, ravne ali valovite, strešne plošče malega formata",20]
[null,null,null,""]
[null,null,null,""]
[null,null,null,""]
[null,"OPOMBI:"]
[null,"1. V primeru, da vlagate vlogo samo za odstranjevanje azbest cementne kritine (salonitke) je v celici C15 že izbrano \"da\" in v celici C35: 1. Plošče velikega formata, ravne ali valovite, strešne plošče malega formata. "]
[null,"2. V primeru, da vlagate vlogo tudi za druge vrste odpadkov iz skupine št. 17 06 (izolirni materiali in gradbeni materiali, ki vsebujejo azbest), izberite \"da\" v celicah od C13 do C15 in izberite ustrezne vrste odpadkov iz spustnih seznamov v celicah od C16 do C38. Podrobneje so azbestni odpadki opredeljeni v zavihkih: priloga1, priloga2 in priloga3."]
[]
[null,"3. V primeru, da ne vlagate vloge za odstranjevanje azbest cemntne kritine (salonitk) izbrišite podatke v celicah C15 in C35 ter izberite ustrezno."]

{"sheet":"opis_postopka","index":5,"n_rows":6,"n_cols":2,"rows_kept":6,"cut":false,"hidden":false,"merged":[[1,1,1,2],[2,1,2,2]]}
[]
[null,"Opis postopka odstranjevanja, rekonstrukcije in/ali vzdrževalnih del, skladno z zakonodajo na področju ravnanja z azbestom in odpadim azbestom"]
[null,"Opomba: navedite kratek opis načinov izvajanja odstranjevanja materialov, ki vsebujejo azbest. Podrobnejši opis opredelite v prilogi vloge."]
[null,"Opis načinov izvajanja odstranjevanja materialov, ki vsebujejo azbest, pri odstranitvi objektov"]
[null,"Opis načinov izvajanja odstranjevanja materialov, ki vsebujejo azbest, pri rekonstrukciji objektov "]
[null,"Opis načinov izvajanja odstranjevanja materialov, ki vsebujejo azbest, pri vzdrževalnih delih na objektih, instalacijah in napravah "]

{"sheet":"ODP_obvezne_priloge","index":6,"n_rows":12,"n_cols":4,"rows_kept":12,"cut":false,"hidden":false,"merged":[]}
[]
[null,null,"Priloge k vlogi - obvezna priložena dokazila "]
[]
[null,null,"Naziv priloge                                                                                                                                                                                                                                                                                                                                                              ","ID iz ODP_SIFRANT_PRILOG"]
[null,null,null,{"$f":"IF(ISNA(VLOOKUP(C5,SIFRANT_PRILOG,3,FALSE)),\"\",VLOOKUP(C5,SIFRANT_PRILOG,3,FALSE))","v":""}]
[null,null,null,""]
[null,null,null,""]
[null,null,null,""]
[null,null,null,""]
[null,null,null,""]
[null,null,null,""]
[null,null,null,""]

{"sheet":"ODP_druga_dok","index":7,"n_rows":17,"n_cols":3,"rows_kept":17,"cut":false,"hidden":false,"merged":[]}
[]
[null,null,"Druga priložena dokazila "]
[]
[null,null,"Dokazilo (naziv, št. dokazila, datum izdaje, izdajatelj, itd.)                                                                                                                                                                                                                                                                                                                                             "]
[]
[]
[]
[]
[]
[]
[]
[]
[]
[]
[]
[]
["Št. vrstic:",2]

{"sheet":"priloga1","index":8,"n_rows":17,"n_cols":3,"rows_kept":17,"cut":false,"hidden":false,"merged":[[1,1,1,2]]}
[]
[null,"Priloga 1: Izdelki iz materialov, ki vsebujejo šibko vezani azbest"]
[]
[null,"Izdelek","Območje odstranjevanja"]
[null,"Lahke plošče, ki vsebujejo azbest:\n- skodle iz strešne lepenke","Strehe"]
[null,"Brizgani ometi","Stropi, stene, jeklena gradbena ogrodja"]
[null,"Ročno nanešeni ometi","Stropi in stene"]
[null,"Izolacijske plošče, ki vsebujejo azbest:\n- lahke gradbene plošče,\n- plošče za zaščito pred ognjem,\n- plošče za zaščito pred požarom.","Strehe"]
[null,"Gradbeni kemični izdelki, ki vsebujejo azbest:\n- tesnilne mase, smole\n- lepila","Tla, stene"]
[null,"Tesnilna in izolacijska masa","Kotli, grelci, tlačne posode"]
[null,"Platno za ovijanje","Cevi"]
[null,"Valovita lepenka iz azbesta","Izolacija cevi za\n- vročo vodo\n- toplo vodo"]
[null,"Papirni trakovi\nValjani papirni trakovi","Kurišča, parni ventili, električna napeljava"]
[null,"Lepenka","Ventili"]
[null,"Kiti za stike, površinski kiti, polnilne in zalivne mase;\nTesnilne mase, plastične mase;\nLepila, barve.","Premazi na stikih vodovodnih in vročevodnih ceveh"]
[null,"Brizgana in ročno nanešena izolacija","Rezervoarji za gorivo,\nRezervoarji v petrokemiji"]
[null,"Tkanine","Oblačila in odeje\nKlobučevina\nPonjave\nVrvi, trakovi, preja\nZavese\nMateriali za ovijanje cevi\nTrakovi"]

{"sheet":"sifrant_materialov","index":9,"n_rows":24,"n_cols":3,"rows_kept":24,"cut":false,"hidden":true,"merged":[]}
["VRSTA","PRILOGA","ID"]
["1. Vinilne talne azbestne obloge","P3",1]
["2. Asfaltne talne azbestne obloge","P3",2]
["3. Veziva, polnila, kiti, paste, barve, premazi za strehe","P3",3]
["1. Lahke plošče, ki vsebujejo azbest (skodle iz strešne lepenke)","P1",4]
["2. Brizgani ometi","P1",5]
["3. Ročno nanešeni ometi","P1",6]
["4. Izolacijske plošče, ki vsebujejo azbest (lahke gradbene plošče, plošče za zaščito pred ognjem, plošče za zaščito pred požarom)","P1",7]
["5. Gradbeni kemični izdelki, ki vsebujejo azbest (tesnilne mase, smole, lepila)","P1",8]
["6. Tesnilna in izolacijska masa","P1",9]
["7. Platno za ovijanje","P1",10]
["8. Valovita lepenka iz azbesta","P1",11]
["9. Papirni trakovi","P1",12]
["10. Valjani papirni trakovi","P1",13]
["11. Lepenka","P1",14]
["12. Kiti za stike, površinski kiti, polnilne in zalivne mase","P1",15]
["13. Tesnilne mase, plastične mase","P1",16]
["14. Lepila, barve","P1",17]
["15. Brizgana in ročno nanešena izolacija","P1",18]
["16. Tkanine","P1",19]
["1. Plošče velikega formata, ravne ali valovite, strešne plošče malega formata","P2",20]
["2. Fasadne plošče","P2",21]
["3. Azbest cementne stene in stropi","P2",22]
["4. Cementne cevi in kolena, spoji","P2",23]

{"sheet":"sifrant_obcin","index":10,"n_rows":212,"n_cols":2,"rows_kept":212,"cut":false,"hidden":true,"merged":[]}
["Naziv občine","OB_ID"]
["AJDOVŠČINA",1]
["ANKARAN",213]
["APAČE",195]
["BELTINCI",2]
["BENEDIKT",148]
["BISTRICA OB SOTLI",149]
["BLED",3]
["BLOKE",150]
["BOHINJ",4]
["BOROVNICA",5]
["BOVEC",6]
["BRASLOVČE",151]
["BRDA",7]
["BREZOVICA",8]
["BREŽICE",9]
["CANKOVA",152]
["CELJE",11]
["CERKLJE NA GORENJSKEM",12]
["CERKNICA",13]
["CERKNO",14]
["CERKVENJAK",153]
["CIRKULANE",196]
["ČRENŠOVCI",15]
["ČRNA NA KOROŠKEM",16]
["ČRNOMELJ",17]
["DESTRNIK",18]
["DIVAČA",19]
["DOBJE",154]
["DOBREPOLJE",20]
["DOBRNA",155]
["DOBROVA-POLHOV GRADEC",21]
["DOBROVNIK",156]
["DOL PRI LJUBLJANI",22]
["DOLENJSKE TOPLICE",157]
["DOMŽALE",23]
["DORNAVA",24]
["DRAVOGRAD",25]
["DUPLEK",26]
["GORENJA VAS-POLJANE",27]
["GORIŠNICA",28]
["GORJE",207]
["GORNJA RADGONA",29]
["GORNJI GRAD",30]
["GORNJI PETROVCI",31]
["GRAD",158]
["GROSUPLJE",32]
["HAJDINA",159]
["HOČE-SLIVNICA",160]
["HODOŠ",161]
["HORJUL",162]
["HRASTNIK",34]
["HRPELJE-KOZINA",35]
["IDRIJA",36]
["IG",37]
["ILIRSKA BISTRICA",38]
["IVANČNA GORICA",39]
["IZOLA",40]
["JESENICE",41]
["JEZERSKO",163]
["JURŠINCI",42]
["KAMNIK",43]
["KANAL",44]
["KIDRIČEVO",45]
["KOBARID",46]
["KOBILJE",47]
["KOČEVJE",48]
["KOMEN",49]
["KOMENDA",164]
["KOPER",50]
["KOSTANJEVICA NA KRKI",197]
["KOSTEL",165]
["KOZJE",51]
["KRANJ",52]
["KRANJSKA GORA",53]
["KRIŽEVCI",166]
["KRŠKO",54]
["KUNGOTA",55]
["KUZMA",56]
["LAŠKO",57]
["LENART",58]
["LENDAVA",59]
["LITIJA",60]
["LJUBLJANA",61]
["LJUBNO",62]
["LJUTOMER",63]
["LOGATEC",64]
["LOG-DRAGOMER",208]
["LOŠKA DOLINA",65]
["LOŠKI POTOK",66]
["LOVRENC NA POHORJU",167]
["LUČE",67]
["LUKOVICA",68]
["MAJŠPERK",69]
["MAKOLE",198]
["MARIBOR",70]
["MARKOVCI",168]
["MEDVODE",71]
["MENGEŠ",72]
["METLIKA",73]
["MEŽICA",74]
["MIKLAVŽ NA DRAVSKEM POLJU",169]
["MIREN-KOSTANJEVICA",75]
["MIRNA",212]
["MIRNA PEČ",170]
["MISLINJA",76]
["MOKRONOG-TREBELNO",199]
["MORAVČE",77]
["MORAVSKE TOPLICE",78]
["MOZIRJE",79]
["MURSKA SOBOTA",80]
["MUTA",81]
["NAKLO",82]
["NAZARJE",83]
["NOVA GORICA",84]
["NOVO MESTO",85]
["ODRANCI",86]
["OPLOTNICA",171]
["ORMOŽ",87]
["OSILNICA",88]
["PESNICA",89]
["PIRAN",90]
["PIVKA",91]
["PODČETRTEK",92]
["PODLEHNIK",172]
["PODVELKA",93]
["POLJČANE",200]
["POLZELA",173]
["POSTOJNA",94]
["PREBOLD",174]
["PREDDVOR",95]
["PREVALJE",175]
["PTUJ",96]
["PUCONCI",97]
["RAČE-FRAM",98]
["RADEČE",99]
["RADENCI",100]
["RADLJE OB DRAVI",101]
["RADOVLJICA",102]
["RAVNE NA KOROŠKEM",103]
["RAZKRIŽJE",176]
["REČICA OB SAVINJI",209]
["RENČE-VOGRSKO",201]
["RIBNICA",104]
["RIBNICA NA POHORJU",177]
["ROGAŠKA SLATINA",106]
["ROGAŠOVCI",105]
["ROGATEC",107]
["RUŠE",108]
["SELNICA OB DRAVI",178]
["SEMIČ",109]
["SEVNICA",110]
["SEŽANA",111]
["SLOVENJ GRADEC",112]
["SLOVENSKA BISTRICA",113]
["SLOVENSKE KONJICE",114]
["SODRAŽICA",179]
["SOLČAVA",180]
["SREDIŠČE OB DRAVI",202]
["STARŠE",115]
["STRAŽA",203]
["SV. TROJICA V SLOV. GORICAH",204]
["SVETA ANA",181]
["SVETI ANDRAŽ V SLOV. GORICAH",182]
["SVETI JURIJ OB ŠČAVNICI",116]
["SVETI JURIJ V SLOV. GORICAH",210]
["SVETI TOMAŽ",205]
["ŠALOVCI",33]
["ŠEMPETER-VRTOJBA",183]
["ŠENČUR",117]
["ŠENTILJ",118]
["ŠENTJERNEJ",119]
["ŠENTJUR",120]
["ŠENTRUPERT",211]
["ŠKOCJAN",121]
["ŠKOFJA LOKA",122]
["ŠKOFLJICA",123]
["ŠMARJE PRI JELŠAH",124]
["ŠMARJEŠKE TOPLICE",206]
["ŠMARTNO OB PAKI",125]
["ŠMARTNO PRI LITIJI",194]
["ŠOŠTANJ",126]
["ŠTORE",127]
["TABOR",184]
["TIŠINA",10]
["TOLMIN",128]
["TRBOVLJE",129]
["TREBNJE",130]
["TRNOVSKA VAS",185]
["TRZIN",186]
["TRŽIČ",131]
["TURNIŠČE",132]
["VELENJE",133]
["VELIKA POLANA",187]
["VELIKE LAŠČE",134]
["VERŽEJ",188]
["VIDEM",135]
["VIPAVA",136]
["VITANJE",137]
["VODICE",138]
["VOJNIK",139]
["VRANSKO",189]
["VRHNIKA",140]
["VUZENICA",141]
["ZAGORJE OB SAVI",142]
["ZAVRČ",143]
["ZREČE",144]
["ŽALEC",190]
["ŽELEZNIKI",146]
["ŽETALE",191]
["ŽIRI",147]
["ŽIROVNICA",192]

{"sheet":"XODP_sifrant_nenevarnih_odp","index":11,"n_rows":24,"n_cols":4,"rows_kept":24,"cut":false,"hidden":true,"merged":[]}
["Številka odpadka ","Naziv odpadka ","Nevarnost odpadka","ID"]
["17 05 04","Zemlja in kamenje, ki nista navedena v 17 05 03",null,1576]
["17 05 06","Material, izkopan pri poglabljanju dna z bagranjem, ki ni naveden v 17 05 05",null,1577]
["01 01 01","Odpadki iz pridobivanja kovinskih mineralnih surovin",null,1410]
["01 01 02","Odpadki iz pridobivanja nekovinskih mineralnih surovin",null,1411]
["01 03 06","Ostanki, ki niso navedeni v 01 03 04 in 01 03 05",null,1412]
["01 03 08","Prašni in praškasti odpadki, ki niso navedeni v 01 03 07",null,1413]
["01 03 09","Rdeče blato iz proizvodnje glinice, ki ni navedeno v 01 03 10",null,1414]
["01 04 08","Odpadna gramoz in drobir, ki nista navedena v 01 04 07",null,1416]
["01 04 09","Odpadni pesek in gline",null,1417]
["01 04 10","Prašni in praškasti odpadki, ki niso navedeni v 01 04 07",null,1418]
["01 04 11","Odpadki iz predelave kalijeve in kamene soli, ki niso navedeni v 01 04 07",null,1419]
["01 04 12","Ostanki in drugi odpadki iz pranja in čiščenja mineralnih surovin, ki niso navedeni v 01 04 07 in 01 04 11",null,1420]
["01 04 13","Odpadki iz rezanja in žaganja kamna, ki niso navedeni v 01 04 07",null,1421]
["01 05 04","Mulji in odpadki iz vrtanja sladkovodnih vrtin",null,1423]
["01 05 07","Mulji in odpadki iz vrtanja, ki vsebujejo barit in niso navedeni v 01 05 05 in 01 05 06",null,1424]
["01 05 08","Mulji in odpadki iz vrtanja, ki vsebujejo klorid in niso navedeni v 01 05 05 in 01 05 06",null,1425]
["02 04 01","Zemlja iz čiščenja in pranja sladkorne pese",null,1505]
["10 09 06","Neuporabljene livarske forme in jedra, ki niso navedeni v 10 09 05",null,1816]
["10 09 08","Uporabljene livarske forme in jedra, ki niso navedeni v 10 09 07",null,1817]
["10 12 13","Blato iz čiščenja odpadnih voda na kraju nastanka",null,1397]
["12 01 17","Odpadki iz peskanja, ki niso navedeni v 12 01 16",null,1172]
["19 12 09","Minerali (npr. pesek, kamenje)",null,1490]
["20 02 02","Zemlja in kamenje",null,1852]

{"sheet":"XODP_sifrant_nevarnih_odp","index":12,"n_rows":409,"n_cols":4,"rows_kept":409,"cut":false,"hidden":true,"merged":[]}
["Številka odpadka ","Naziv odpadka ","Nevarnost odpadka","ID"]
["01 03 04","Kisli ostanki iz predelave sulfidne rude","*",1117]
["01 03 05","Drugi ostanki, ki vsebujejo nevarne snovi","*",1118]
["01 03 07","Drugi odpadki, ki vsebujejo nevarne snovi, iz fizikalne in kemične predelave kovinskih mineralnih surovin","*",1119]
["01 03 10","Rdeče blato iz proizvodnje glinice, ki vsebuje druge nevarne snovi, kot so odpadki, ki so navedeni v 01 03 07","*",1951]
["01 04 07","Odpadki, ki vsebujejo nevarne snovi, iz fizikalne in kemijske predelave nekovinskih mineralnih surovin","*",1120]
["01 05 05","Mulji in odpadki iz vrtanja, ki vsebujejo olja","*",1121]
["01 05 06","Mulji in drugi odpadki iz vrtanja, ki vsebujejo nevarne snovi","*",1122]
["02 01 08","Agrokemični odpadki, ki vsebujejo nevarne snovi","*",1123]
["03 01 04","Žagovina, oblanci, odrezki, les, iverne plošče in furnir, ki vsebujejo nevarne snovi","*",1124]
["03 02 01","Nehalogenirana organska sredstva za zaščito lesa","*",1125]
["03 02 02","Klorirana organska sredstva za zaščito lesa","*",1126]
["03 02 03","Organokovinska sredstva za zaščito lesa","*",1127]
["03 02 04","Anorganska sredstva za zaščito lesa","*",1128]
["03 02 05","Druga sredstva za zaščito lesa, ki vsebujejo nevarne snovi","*",1129]
["04 01 03","Odpadki iz razmaščevanja, ki vsebujejo topila, brez tekoče faze","*",1130]
["04 02 14","Odpadki iz dodelave, ki vsebujejo organska topila","*",1131]
["04 02 16","Barvila in pigmenti, ki vsebujejo nevarne snovi","*",1310]
["04 02 19","Blato, ki vsebuje nevarne snovi, iz čiščenja odpadnih voda na kraju nastanka","*",1311]
["05 01 02","Mulji iz razsoljevanja","*",973]
["05 01 03","Mulji z dna rezervoarjev","*",974]
["05 01 04","Kisli alkilni mulji","*",975]
["05 01 05","Razlita nafta","*",976]
["05 01 06","Zaoljeni mulji iz postopkov vzdrževanja obrata ali opreme","*",977]
["05 01 07","Kisli katrani","*",978]
["05 01 08","Drugi katrani","*",979]
["05 01 09","Blato, ki vsebuje nevarne snovi, iz čiščenja odpadnih voda na kraju nastanka","*",980]
["05 01 11","Odpadki iz čiščenja goriv z lugi","*",981]
["05 01 12","Nafta, ki vsebuje kisline","*",982]
["05 01 15","Izrabljene filtrirne gline","*",983]
["05 06 01","Kisli katrani","*",984]
["05 06 03","Drugi katrani","*",985]
["05 07 01","Odpadki, ki vsebujejo živo srebro","*",986]
["06 01 01","Žveplova in žveplasta kislina","*",987]
["06 01 02","Klorovodikova kislina","*",988]
["06 01 03","Fluorovodikova kislina","*",989]
["06 01 04","Fosforjeva in fosforasta kislina","*",990]
["06 01 05","Dušikova in dušikasta kislina","*",991]
["06 01 06","Druge kisline","*",992]
["06 02 01","Kalcijev hidroksid","*",993]
["06 02 03","Amonijev hidroksid","*",994]
["06 02 04","Natrijev in kalijev hidroksid","*",995]
["06 02 05","Druge baze (lugi)","*",996]
["06 03 11","Trdne soli in raztopine, ki vsebujejo cianide","*",997]
["06 03 13","Trdne soli in raztopine, ki vsebujejo težke kovine","*",998]
["06 03 15","Kovinski oksidi, ki vsebujejo težke kovine","*",999]
["06 04 03","Odpadki, ki vsebujejo arzen","*",1000]
["06 04 04","Odpadki, ki vsebujejo živo srebro","*",1001]
["06 04 05","Odpadki, ki vsebujejo druge težke kovine","*",1002]
["06 05 02","Blato, ki vsebuje nevarne snovi, iz čiščenja odpadnih voda na kraju nastanka","*",1003]
["06 06 02","Odpadki, ki vsebujejo nevarne sulfide","*",1004]
["06 07 01","Elektrolizni odpadki, ki vsebujejo azbest","*",1005]
["06 07 02","Aktivno oglje iz proizvodnje klora","*",1006]
["06 07 03","Mulj barijevega sulfata, ki vsebuje živo srebro","*",1007]
["06 07 04","Raztopine in kisline, npr. kontaktna kislina","*",1008]
["06 08 02","Odpadki, ki vsebujejo nevarne klorosilane","*",1009]
["06 09 03","Odpadki iz reakcij na osnovi kalcija, ki vsebujejo nevarne snovi ali pa so onesnaženi z njimi","*",1010]
["06 10 02","Odpadki, ki vsebujejo nevarne snovi","*",1011]
["06 13 01","Anorganska sredstva za zaščito rastlin, sredstva za zaščito lesa in drugi biocidi","*",1012]
["06 13 02","Izrabljeno aktivno oglje (razen 06 07 02)","*",1013]
["06 13 04","Odpadki iz predelave azbesta","*",1014]
["06 13 05","Dimniške saje","*",1015]
["07 01 01","Pralne tekočine na vodni osnovi in matične lužnice","*",1016]
["07 01 03","Halogenirana organska topila, pralne tekočine in matične lužnice","*",1017]
["07 01 04","Druga organska topila, pralne tekočine in matične lužnice","*",1018]
["07 01 07","Halogenirani ostanki iz destilacij in reakcij","*",1019]
["07 01 08","Drugi ostanki iz destilacij in reakcij","*",1020]
["07 01 09","Halogenirane filtrne pogače in izrabljeni absorbenti","*",1021]
["07 01 10","Druge filtrne pogače in izrabljeni absorbenti","*",1022]
["07 01 11","Blato, ki vsebuje nevarne snovi, iz čiščenja odpadnih voda na kraju nastanka","*",1023]
["07 02 01","Pralne tekočine na vodni osnovi in matične lužnice","*",1024]
["07 02 03","Halogenirana organska topila, pralne tekočine in matične lužnice","*",1025]
["07 02 04","Druga organska topila, pralne tekočine in matične lužnice","*",1026]
["07 02 07","Halogenirani ostanki iz destilacij in reakcij","*",1027]
["07 02 08","Drugi ostanki iz destilacij in reakcij","*",1028]
["07 02 09","Halogenirane filtrne pogače in izrabljeni absorbenti","*",1029]
["07 02 10","Druge filtrne pogače in izrabljeni absorbenti","*",1030]
["07 02 11","Blato, ki vsebuje nevarne snovi, iz čiščenja odpadnih voda na kraju nastanka","*",1031]
["07 02 14","Odpadki aditivov, ki vsebujejo nevarne snovi","*",1032]
["07 02 16","Odpadki, ki vsebujejo nevarne silikone","*",1033]
["07 03 01","Pralne tekočine na vodni osnovi in matične lužnice","*",1034]
["07 03 03","Halogenirana organska topila, pralne tekočine in matične lužnice","*",1035]
["07 03 04","Druga organska topila, pralne tekočine in matične lužnice","*",1036]
["07 03 07","Halogenirani ostanki iz destilacij in reakcij","*",1037]
["07 03 08","Drugi ostanki iz destilacij in reakcij","*",1038]
["07 03 09","Halogenirane filtrne pogače in izrabljeni absorbenti","*",1039]
["07 03 10","Druge filtrne pogače in izrabljeni absorbenti","*",1040]
["07 03 11","Blato, ki vsebuje nevarne snovi, iz čiščenja odpadnih voda na kraju nastanka","*",1041]
["07 04 01","Pralne tekočine na vodni osnovi in matične lužnice","*",1042]
["07 04 03","Halogenirana organska topila, pralne tekočine in matične lužnice","*",1043]
["07 04 04","Druga organska topila, pralne tekočine in matične lužnice","*",972]
["07 04 07","Halogenirani ostanki iz destilacij in reakcij","*",1045]
["07 04 08","Drugi ostanki iz destilacij in reakcij","*",1046]
["07 04 09","Halogenirane filtrne pogače in izrabljeni absorbenti","*",1047]
["07 04 10","Druge filtrne pogače in izrabljeni absorbenti","*",1182]
["07 04 11","Blato, ki vsebuje nevarne snovi, iz čiščenja odpadnih voda na kraju nastanka","*",1183]
["07 04 13","Trdni odpadki, ki vsebujejo nevarne snovi","*",1184]
["07 05 01","Pralne tekočine na vodni osnovi in matične lužnice","*",1185]
["07 05 03","Halogenirana organska topila, pralne tekočine in matične lužnice","*",1186]
["07 05 04","Druga organska topila, pralne tekočine in matične lužnice","*",1187]
["07 05 07","Halogenirani ostanki iz destilacij in reakcij","*",1188]
["07 05 08","Drugi ostanki iz destilacij in reakcij","*",1189]
["07 05 09","Halogenirane filtrne pogače in izrabljeni absorbenti","*",1190]
["07 05 10","Druge filtrne pogače in izrabljeni absorbenti","*",1191]
["07 05 11","Blato, ki vsebuje nevarne snovi, iz čiščenja odpadnih voda na kraju nastanka","*",1192]
["07 05 13","Trdni odpadki, ki vsebujejo nevarne snovi","*",1193]
["07 06 01","Pralne tekočine na vodni osnovi in matične lužnice","*",1194]
["07 06 03","Halogenirana organska topila, pralne tekočine in matične lužnice","*",1195]
["07 06 04","Druga organska topila, pralne tekočine in matične lužnice","*",1196]
["07 06 07","Halogenirani ostanki iz destilacij in reakcij","*",1197]
["07 06 08","Drugi ostanki iz destilacij in reakcij","*",1198]
["07 06 09","Halogenirane filtrne pogače in izrabljeni absorbenti","*",1199]
["07 06 10","Druge filtrne pogače in izrabljeni absorbenti","*",1200]
["07 06 11","Blato, ki vsebuje nevarne snovi, iz čiščenja odpadnih voda na kraju nastanka snovi","*",1201]
["07 07 01","Pralne tekočine na vodni osnovi in matične lužnice","*",1202]
["07 07 03","Halogenirana organska topila, pralne tekočine in matične lužnice","*",1203]
["07 07 04","Druga organska topila, pralne tekočine in matične lužnice","*",1204]
["07 07 07","Halogenirani ostanki iz destilacij in reakcij","*",1205]
["07 07 08","Drugi ostanki iz destilacij in reakcij","*",1206]
["07 07 09","Halogenirane filtrne pogače in izrabljeni absorbenti","*",1207]
["07 07 10","Druge filtrne pogače in izrabljeni absorbenti","*",1208]
["07 07 11","Blato, ki vsebuje nevarne snovi, iz čiščenja odpadnih voda na kraju nastanka snovi","*",1209]
["08 01 11","Odpadne barve in laki, ki vsebujejo organska topila ali druge nevarne snovi","*",1210]
["08 01 13","Mulji barv ali lakov, ki vsebujejo organska topila ali druge nevarne snovi","*",1211]
["08 01 15","Vodni mulji, ki vsebujejo barve ali lake, ki vsebujejo organska topila ali druge nevarne snovi","*",1212]
["08 01 17","Odpadki iz odstranjevanja barv ali lakov, ki vsebujejo organska topila ali druge nevarne snovi","*",1213]
["08 01 19","Vodne suspenzije, ki vsebujejo barve ali lake, ki vsebujejo organska topila ali druge nevarne snovi","*",1214]
["08 01 21","Odpadki sredstev za odstranjevanje barv ali lakov","*",1215]
["08 03 12","Odpadne tiskarske barve, ki vsebujejo nevarne snovi","*",1216]
["08 03 14","Mulji tiskarskih barv, ki vsebujejo nevarne snovi","*",1217]
["08 03 16","Odpadne raztopine za jedkanje","*",1218]
["08 03 17","Odpadni tiskarski tonerji, ki vsebujejo nevarne snovi","*",1219]
["08 03 19","Disperzijsko olje","*",1220]
["08 04 09","Odpadna lepila in tesnilne mase, ki vsebujejo organska topila ali druge nevarne snovi","*",1221]
["08 04 11","Mulji lepil in tesnilnih mas, ki vsebujejo organska topila ali druge nevarne snovi","*",1222]
["08 04 13","Vodni mulji, ki vsebujejo lepila ali tesnilne mase, ki vsebujejo organska topila ali druge nevarne snovi","*",1223]
["08 04 15","Odpadne vodne raztopine, ki vsebujejo lepila ali tesnilne mase, ki vsebujejo organska topila ali druge nevarne snovi","*",1224]
["08 04 17","Smolno olje (kolofonija)","*",1225]
["08 05 01","Odpadni izocianati","*",1226]
["09 01 01","Raztopine razvijalcev in aktivatorjev na vodni osnovi","*",1227]
["09 01 02","Raztopine razvijalcev za ofsetne plošče na vodni osnovi","*",1228]
["09 01 03","Raztopine razvijalcev na osnovi topil","*",1229]
["09 01 04","Fiksirne raztopine","*",1230]
["09 01 05","Belilne in belilno-fiksirne raztopine","*",1231]
["09 01 06","Odpadki, ki vsebujejo srebro, iz obdelave fotografskih odpadkov na kraju nastanka","*",1232]
["09 01 11","Fotoaparati za enkratno uporabo, z baterijami, navedenimi v 16 06 01, 16 06 02 ali 16 06 03","*",1233]
["09 01 13","Odpadne vodne raztopine iz regeneracije srebra na kraju nastanka, ki niso navedene v 09 01 06","*",1234]
["10 01 04","Elektrofiltrski pepel in kotlovski prah iz kurilnih naprav na kurilno olje","*",1235]
["10 01 09","Žveplova kislina","*",1236]
["10 01 13","Elektrofiltrski pepel iz emulgiranih ogljikovodikov, uporabljenih kot gorivo","*",1237]
["10 01 14","Pepel, žlindra in kotlovski prah, ki vsebujejo nevarne snovi, iz naprav za sosežig","*",1238]
["10 01 16","Elektrofiltrski pepel, ki vsebuje nevarne snovi, iz naprav za sosežig","*",1239]
["10 01 18","Odpadki, ki vsebujejo nevarne snovi, iz čiščenja odpadnih plinov","*",1044]
["10 01 20","Blato, ki vsebuje nevarne snovi, iz čiščenja odpadnih voda na kraju nastanka","*",1240]
["10 01 22","Vodni mulji, ki vsebujejo nevarne snovi, iz čiščenja kotlov","*",1244]
["10 02 07","Trdni odpadki, ki vsebujejo nevarne snovi, iz čiščenja odpadnih plinov","*",1245]
["10 02 11","Odpadki iz obdelave hladilne vode, ki vsebujejo olje","*",1048]
["10 02 13","Mulji in filtrne pogače, ki vsebujejo nevarne snovi, iz čiščenja odpadnih plinov","*",1049]
["10 03 04","Žlindre iz primarnega taljenja","*",1050]
["10 03 08","Solne žlindre iz sekundarnega taljenja","*",1051]
["10 03 09","Črni posnemki iz sekundarnega taljenja","*",1052]
["10 03 15","Posnemki, ki so vnetljivi ali pri stiku z vodo sproščajo vnetljive pline v nevarnih količinah","*",1053]
["10 03 17","Odpadki iz proizvodnje anod, ki vsebujejo katran","*",1054]
["10 03 19","Prah dimnih plinov, ki vsebuje nevarne snovi","*",1055]
["10 03 21","Drugi delci in prah (vključno s prahom iz krogličnih mlinov), ki vsebujejo nevarne snovi","*",1056]
["10 03 23","Trdni odpadki iz čiščenja odpadnih plinov, ki vsebujejo nevarne snovi","*",1057]
["10 03 25","Mulji in filtrne pogače iz čiščenja odpadnih plinov, ki vsebujejo nevarne snovi","*",1058]
["10 03 27","Odpadki iz obdelave hladilne vode, ki vsebujejo olje","*",1059]
["10 03 29","Odpadki iz obdelave solnih žlinder in črnih posnemkov, ki vsebujejo nevarne snovi","*",1060]
["10 04 01","Žlindra iz primarnega in sekundarnega taljenja","*",1061]
["10 04 02","Posnemki iz primarnega in sekundarnega taljenja","*",1062]
["10 04 03","Kalcijev arzenat","*",1063]
["10 04 04","Prah dimnih plinov","*",1064]
["10 04 05","Drugi delci in prah","*",1065]
["10 04 06","Trdni odpadki iz čiščenja odpadnih plinov","*",1066]
["10 04 07","Mulji in filtrne pogače iz čiščenja odpadnih plinov","*",1067]
["10 04 09","Odpadki iz obdelave hladilne vode, ki vsebujejo olje","*",1068]
["10 05 03","Prah dimnih plinov","*",1069]
["10 05 05","Trdni odpadki iz čiščenja odpadnih plinov","*",1070]
["10 05 06","Mulji in filtrne pogače iz čiščenja odpadnih plinov","*",1071]
["10 05 08","Odpadki iz obdelave hladilne vode, ki vsebujejo olje","*",1072]
["10 05 10","Posnemki, ki so vnetljivi ali pri stiku z vodo sproščajo vnetljive pline v nevarnih količinah","*",1073]
["10 06 03","Prah dimnih plinov","*",1074]
["10 06 06","Trdni odpadki iz čiščenja odpadnih plinov","*",1075]
["10 06 07","Mulji in filtrne pogače iz čiščenja odpadnih plinov","*",1076]
["10 06 09","Odpadki iz obdelave hladilne vode, ki vsebujejo olje","*",1077]
["10 07 07","Odpadki iz obdelave hladilne vode, ki vsebujejo olje","*",1078]
["10 08 08","Solna žlindra iz primarnega in sekundarnega taljenja","*",1079]
["10 08 10","Posnemki, ki so vnetljivi ali pri stiku z vodo sproščajo vnetljive pline v nevarnih količinah","*",1080]
["10 08 12","Odpadki iz proizvodnje anod, ki vsebujejo katran","*",1081]
["10 08 15","Prah dimnih plinov, ki vsebuje nevarne snovi","*",1082]
["10 08 17","Mulji in filtrne pogače iz čiščenja dimnih plinov, ki vsebujejo nevarne snovi","*",1083]
["10 08 19","Odpadki iz obdelave hladilne vode, ki vsebujejo olje","*",1084]
["10 09 05","Neuporabljene livarske forme in jedra, ki vsebujejo nevarne snovi","*",1085]
["10 09 07","Uporabljene livarske forme in jedra, ki vsebujejo nevarne snovi","*",1086]
["10 09 09","Prah dimnih plinov, ki vsebuje nevarne snovi","*",1087]
["10 09 11","Drugi delci, ki vsebujejo nevarne snovi","*",1088]
["10 09 13","Odpadna veziva, ki vsebujejo nevarne snovi","*",1089]
["10 09 15","Odpadna sredstva za ugotavljanje razpok, ki vsebujejo nevarne snovi","*",1090]
["10 10 05","Neuporabljene livarske forme in jedra, ki vsebujejo nevarne snovi","*",1091]
["10 10 07","Uporabljene livarske forme in jedra, ki vsebujejo nevarne snovi","*",1092]
["10 10 09","Prah dimnih plinov, ki vsebuje nevarne snovi","*",1093]
["10 10 11","Drugi delci, ki vsebujejo nevarne snovi","*",1094]
["10 10 13","Odpadna veziva, ki vsebujejo nevarne snovi","*",1095]
["10 10 15","Odpadna sredstva za ugotavljanje razpok, ki vsebujejo nevarne snovi","*",1096]
["10 11 09","Odpadna zmes pred taljenjem, ki vsebuje nevarne snovi","*",1097]
["10 11 11","Odpadno steklo, ki vsebuje težke kovine, v obliki majhnih delcev in prahu (npr. steklo katodnih cevi)","*",1098]
["10 11 13","Mulj iz poliranja in brušenja stekla, ki vsebuje nevarne snovi","*",1099]
["10 11 15","Trdni odpadki iz čiščenja dimnih plinov, ki vsebujejo nevarne snovi","*",1100]
["10 11 17","Mulji in filtrne pogače iz čiščenja dimnih plinov, ki vsebujejo nevarne snovi","*",1101]
["10 11 19","Trdni odpadki, ki vsebujejo nevarne snovi, iz čiščenja odpadnih voda na kraju nastanka","*",1102]
["10 12 09","Trdni odpadki iz čiščenja odpadnih plinov, ki vsebujejo nevarne snovi","*",1103]
["10 12 11","Odpadki iz glaziranja, ki vsebujejo težke kovine","*",1241]
["10 13 09","Odpadki, ki vsebujejo azbest, iz proizvodnje azbestcementa","*",1242]
["10 13 12","Trdni odpadki iz čiščenja odpadnih plinov, ki vsebujejo nevarne snovi","*",1243]
["10 14 01","Odpadki, ki vsebujejo živo srebro, iz čiščenja odpadnih plinov","*",1111]
["11 01 05","Kisline za luženja","*",1112]
["11 01 06","Kisline, ki niso navedene drugje","*",1113]
["11 01 07","Baze (lugi) za luženje","*",1114]
["11 01 08","Mulji iz fosfatiranja","*",1115]
["11 01 09","Mulji in filtrne pogače, ki vsebujejo nevarne snovi","*",1116]
["11 01 11","Tekočine za izpiranje na vodni osnovi, ki vsebujejo nevarne snovi","*",1596]
["11 01 13","Odpadki iz razmaščevanja, ki vsebujejo nevarne snovi","*",1597]
["11 01 15","Eluati in mulji, ki vsebujejo nevarne snovi, iz membranskih sistemov ali ionskih izmenjevalnikov","*",1598]
["11 01 16","Nasičene ali izrabljene smole ionskih izmenjevalnikov","*",1599]
["11 01 98","Drugi odpadki, ki vsebujejo nevarne snovi","*",1600]
["11 02 02","Mulji iz hidrometalurgije cinka (vključno z jarositom in goethitom)","*",1601]
["11 02 05","Odpadki iz hidrometalurških postopkov bakra, ki vsebujejo nevarne snovi","*",1602]
["11 02 07","Drugi odpadki, ki vsebujejo nevarne snovi","*",1603]
["11 03 01","Odpadki, ki vsebujejo cianid","*",1604]
["11 03 02","Drugi odpadki","*",1605]
["11 05 03","Trdni odpadki iz čiščenja odpadnih plinov","*",1606]
["11 05 04","Izrabljena kopel","*",1607]
["12 01 06","Mineralna strojna olja, ki vsebujejo halogene (razen emulzij in raztopin)","*",1608]
["12 01 07","Mineralna strojna olja, ki ne vsebujejo halogenov (razen emulzij in raztopin)","*",1609]
["12 01 08","Strojne emulzije in raztopine, ki vsebujejo halogene","*",1610]
["12 01 09","Strojne emulzije in raztopine, ki ne vsebujejo halogenov","*",1611]
["12 01 10","Sintetična strojna olja","*",1612]
["12 01 12","Izrabljeni voski in masti","*",1613]
["12 01 14","Strojni mulji, ki vsebujejo nevarne snovi","*",1614]
["12 01 16","Odpadki iz peskanja, ki vsebujejo nevarne snovi","*",1615]
["12 01 18","Kovinski mulj (mulj iz brušenja, honanja in lepanja), ki vsebuje olje","*",1616]
["12 01 19","Lahko biorazgradljiva strojna olja","*",1617]
["12 01 20","Izrabljena brusilna telesa in brusilni materiali, ki vsebujejo nevarne snovi","*",1618]
["12 03 01","Pralne tekočine na vodni osnovi","*",1619]
["12 03 02","Odpadki iz razmaščevanja s paro","*",1620]
["13 01 01","Hidravlična olja, ki vsebujejo PCB","*",1621]
["13 01 04","Klorirane emulzije","*",1622]
["13 01 05","Neklorirane emulzije","*",1623]
["13 01 09","Mineralna klorirana hidravlična olja","*",1624]
["13 01 10","Mineralna neklorirana hidravlična olja","*",1625]
["13 01 11","Sintetična hidravlična olja","*",1626]
["13 01 12","Lahko biorazgradljiva hidravlična olja","*",1627]
["13 01 13","Druga hidravlična olja","*",1628]
["13 02 04","Mineralna klorirana motorna olja, olja prestavnih mehanizmov in mazalna olja","*",1629]
["13 02 05","Mineralna neklorirana motorna olja, olja prestavnih mehanizmov in mazalna olja","*",1630]
["13 02 06","Sintetična motorna olja, olja prestavnih mehanizmov in mazalna olja","*",1631]
["13 02 07","Lahko biorazgradljiva motorna olja, olja prestavnih mehanizmov in mazalna olja","*",1632]
["13 02 08","Druga motorna olja, olja prestavnih mehanizmov in mazalna olja","*",1633]
["13 03 01","Izolirna olja in olja za prenos toplote, ki vsebujejo PCB","*",1634]
["13 03 06","Mineralna klorirana izolirna olja in olja prenos toplote, ki niso navedena v 13 03 01","*",1635]
["13 03 07","Mineralna neklorirana izolirna olja in olja za prenos toplote","*",1636]
["13 03 08","Sintetična izolirna olja in olja za prenos toplote","*",1637]
["13 03 09","Lahko biorazgradljiva izolirna olja in olja za prenos toplote","*",1638]
["13 03 10","Druga izolirna olja in olja za prenos toplote","*",1639]
["13 04 01","Kalužna (ladijska) olja iz plovbe po celinskih plovnih poteh","*",1640]
["13 04 02","Kalužna (ladijska) olja iz odtočnih kanalov na pomolih","*",1641]
["13 04 03","Kalužna (ladijska) olja iz druge plovbe","*",1642]
["13 05 01","Trdne snovi iz peskolovov in naprav za ločevanje olja in vode","*",1643]
["13 05 02","Mulji iz naprav za ločevanje olja in vode","*",1644]
["13 05 03","Mulji iz lovilcev olj","*",1645]
["13 05 06","Olja iz naprav za ločevanje olja in vode","*",1646]
["13 05 07","Z oljem onesnažena voda iz naprav za ločevanje olja in vode","*",1647]
["13 05 08","Mešanice odpadkov iz peskolovov in naprav za ločevanje olja in vode","*",1648]
["13 07 01","Kurilno olje in dizelsko gorivo","*",1649]
["13 07 02","Bencin","*",1650]
["13 07 03","Druga goriva (vključno z mešanicami)","*",1651]
["13 08 01","Mulji ali emulzije iz razsoljevanja","*",1652]
["13 08 02","Druge emulzije","*",1653]
["13 08 99","Odpadki, ki niso navedeni drugje","*",1654]
["14 06 01","Fluorokloroogljikovodiki, HCFC, HFC","*",1655]
["14 06 02","Druga halogenirana topila in mešanice topil","*",1656]
["14 06 03","Druga topila in mešanice topil","*",1657]
["14 06 04","Mulji ali trdni odpadki, ki vsebujejo halogenirana topila","*",1658]
["14 06 05","Mulji ali trdni odpadki, ki vsebujejo druga topila","*",1659]
["15 01 10","Embalaža, ki vsebuje ostanke nevarnih snovi ali je onesnažena z nevarnimi snovmi","*",1660]
["15 01 11","Kovinska embalaža, ki vsebuje nevaren trden porozen oklep (npr. azbest), vključno s praznimi tlačnimi posodami","*",1661]
["15 02 02","Absorbenti, filtrirna sredstva (vključno z oljnimi filtri, ki niso navedeni drugje), čistilne krpe in zaščitna oblačila, ki so onesnaženi z nevarnimi snovmi","*",1662]
["16 01 04","Izrabljena vozila","*",1132]
["16 01 07","Oljni filtri","*",1133]
["16 01 08","Sestavine, ki vsebujejo živo srebro","*",1134]
["16 01 09","Sestavine, ki vsebujejo PCB","*",1135]
["16 01 10","Eksplozivne sestavine (npr. zračne blazine)","*",1136]
["16 01 11","Zavorne obloge, ki vsebujejo azbest","*",1137]
["16 01 13","Zavorne tekočine","*",1138]
["16 01 14","Tekočine proti zmrzovanju, ki vsebujejo nevarne snovi","*",1139]
["16 01 21","Nevarne sestavine, ki niso navedene v 16 01 07 do 16 01 11 ter 16 01 13 in 16 01 14","*",1140]
["16 02 09","Transformatorji in kondenzatorji, ki vsebujejo PCB","*",1141]
["16 02 10","Zavržena oprema, ki vsebuje PCB ali je onesnažena z njimi in ni navedena v 16 02 09","*",1142]
["16 02 11","Zavržena oprema, ki vsebuje fluorokloroogljikovodike, HCFC, HFC","*",1143]
["16 02 12","Zavržena oprema, ki vsebuje prosti azbest","*",1144]
["16 02 13","Zavržena oprema, ki vsebuje nevarne sestavine (3), in ni navedena v 16 02 09 do 16 02 12","*",1145]
["16 02 15","Nevarne sestavine, odstranjene iz zavržene opreme","*",1146]
["16 03 03","Anorganski odpadki, ki vsebujejo nevarne snovi","*",1147]
["16 03 05","Organski odpadki, ki vsebujejo nevarne snovi","*",1148]
["16 03 07","Kovinsko živo srebro","*",1952]
["16 04 01","Odpadno strelivo","*",1149]
["16 04 02","Odpadni pirotehnični izdelki","*",1150]
["16 04 03","Drugi odpadni eksplozivi","*",1151]
["16 05 04","Plini v tlačnih posodah (vključno s haloni), ki vsebujejo nevarne snovi","*",1152]
["16 05 06","Laboratorijske kemikalije, ki sestojijo iz nevarnih snovi ali jih vsebujejo, vključno z mešanicami laboratorijskih kemikalij","*",1153]
["16 05 07","Zavržene anorganske kemikalije, ki sestojijo iz nevarnih snovi ali jih vsebujejo","*",1154]
["16 05 08","Zavržene organske kemikalije, ki sestojijo iz nevarnih snovi ali jih vsebujejo","*",1155]
["16 06 01","Svinčeve baterije","*",1156]
["16 06 02","Nikelj-kadmijeve baterije","*",1157]
["16 06 03","Baterije, ki vsebujejo živo srebro","*",1158]
["16 06 06","Ločeno zbrani elektroliti iz baterij in akumulatorjev","*",1159]
["16 07 08","Odpadki, ki vsebujejo olje","*",1160]
["16 07 09","Odpadki, ki vsebujejo druge nevarne snovi","*",1161]
["16 08 02","Izrabljeni katalizatorji, ki vsebujejo nevarne prehodne kovine ali njihove spojine","*",1162]
["16 08 05","Izrabljeni katalizatorji, ki vsebujejo fosforjevo kislino","*",1163]
["16 08 06","Izrabljene tekočine, uporabljene kot katalizatorji","*",1164]
["16 08 07","Izrabljeni katalizatorji, onesnaženi z nevarnimi snovmi","*",1165]
["16 09 01","Permanganati, npr. kalijev permanganat","*",1166]
["16 09 02","Kromati, npr. kalijev kromat, kalijev ali natrijev dikromat","*",1167]
["16 09 03","Peroksidi, npr. vodikov peroksid","*",1168]
["16 09 04","Oksidanti, ki niso navedeni drugje","*",1169]
["16 10 01","Odpadne vodne raztopine, ki vsebujejo nevarne snovi","*",1104]
["16 10 03","Vodni koncentrati, ki vsebujejo nevarne snovi","*",1105]
["16 11 01","Obloge in ognjevzdržni materiali na osnovi ogljika, ki vsebujejo nevarne snovi, iz metalurških postopkov","*",1106]
["16 11 03","Druge obloge in ognjevzdržni materiali, ki vsebujejo nevarne snovi, iz metalurških postopkov","*",1107]
["16 11 05","Obloge in ognjevzdržni materiali, ki vsebujejo nevarne snovi, iz nemetalurških postopkov","*",1108]
["17 01 06","Mešanice ali ločene frakcije betona, opeke, ploščic in keramike, ki vsebujejo nevarne snovi","*",1109]
["17 02 04","Steklo, plastika in les, ki vsebujejo nevarne snovi, ali so z njimi onesnaženi","*",1110]
["17 03 01","Bitumenske mešanice, ki vsebujejo premogov katran","*",1246]
["17 03 03","Premogov katran in proizvodi, ki vsebujejo katran","*",1247]
["17 04 09","Kovinski odpadki, onesnaženi z nevarnimi snovmi","*",1248]
["17 04 10","Kabli, ki vsebujejo olje, premogov katran in druge nevarne snovi","*",1249]
["17 05 03","Zemlja in kamenje, ki vsebujeta nevarne snovi","*",1250]
["17 05 05","Material, izkopan pri poglabljanju dna z bagranjem, ki vsebuje nevarne snovi","*",1251]
["17 05 07","Tolčenec izpod železniških tirov in pragov, ki vsebuje nevarne snovi","*",1252]
["17 06 01","Izolirni materiali, ki vsebujejo azbest","*",1253]
["17 06 03","Drugi izolirni materiali, ki sestojijo iz nevarnih snovi ali jih vsebujejo","*",1254]
["17 06 05","Gradbeni materiali, ki vsebujejo azbest","*",1255]
["17 08 01","Gradbeni materiali na osnovi sadre, ki so onesnaženi z nevarnimi snovmi","*",1256]
["17 09 01","Gradbeni odpadki in odpadki iz rušenja objektov, ki vsebujejo živo srebro","*",1257]
["17 09 02","Gradbeni odpadki in odpadki iz rušenja objektov, ki vsebujejo PCB (npr. tesnilne mase, ki vsebujejo PCB, talne obloge na osnovi smol, ki vsebujejo PCB, zasteklitve z izolirnimi stekli, ki vsebujejo PCB, in kondenzatorji, ki vsebujejo PCB)","*",1258]
["17 09 03","Drugi gradbeni odpadki in odpadki iz rušenja objektov (vključno z mešanicami odpadkov), ki vsebujejo nevarne snovi","*",1259]
["18 01 03","Odpadki, ki z vidika preprečevanja okužbe zahtevajo posebno ravnanje pri zbiranju in odstranjevanju","*",1260]
["18 01 06","Kemikalije, ki sestojijo iz nevarnih snovi ali jih vsebujejo","*",1261]
["18 01 08","Citotoksična in citostatična zdravila","*",1262]
["18 01 10","Amalgamski odpadki iz zobozdravstva","*",1263]
["18 02 02","Odpadki, ki z vidika preprečevanja okužb zahtevajo posebno ravnanje pri zbiranju in odstranjevanju","*",1264]
["18 02 05","Kemikalije, ki sestojijo iz nevarnih snovi ali jih vsebujejo","*",1265]
["18 02 07","Citotoksična in citostatična zdravila","*",1266]
["19 01 05","Filtrne pogače iz čiščenja odpadnih plinov","*",1267]
["19 01 06","Odpadne vodne raztopine iz čiščenja odpadnih plinov in druge odpadne vodne raztopine","*",1268]
["19 01 07","Trdni odpadki iz čiščenja odpadnih plinov","*",1269]
["19 01 10","Izrabljeno aktivno oglje iz čiščenja dimnih plinov","*",1270]
["19 01 11","Ogorki in žlindra, ki vsebujejo nevarne snovi","*",1271]
["19 01 13","Elektrofiltrski pepel, ki vsebuje nevarne snovi","*",1272]
["19 01 15","Kotlovski prah, ki vsebuje nevarne snovi","*",1273]
["19 01 17","Odpadki, ki vsebujejo nevarne snovi, iz pirolize","*",1274]
["19 02 04","Pomešani odpadki, ki vsebujejo vsaj en nevarni odpadek","*",1275]
["19 02 05","Mulji, ki vsebujejo nevarne snovi, iz fizikalno-kemične obdelave","*",1276]
["19 02 07","Olja in koncentrati iz postopkov ločevanja","*",1277]
["19 02 08","Tekoči gorljivi odpadki, ki vsebujejo nevarne snovi","*",1278]
["19 02 09","Trdni gorljivi odpadki, ki vsebujejo nevarne snovi","*",1279]
["19 02 11","Drugi odpadki, ki vsebujejo nevarne snovi","*",1280]
["19 03 04","Odpadki, označeni kot nevarni, delno stabilizirani, razen 19 03 08","*",1281]
["19 03 06","Odpadki, označeni kot nevarni, solidificirani","*",1282]
["19 03 08","Delno stabilizirano živo srebro","*",1971]
["19 04 02","Elektrofiltrski pepel in drugi odpadki iz čiščenja dimnih plinov","*",1283]
["19 04 03","Nezastekljena trdna faza","*",1284]
["19 07 02","Izcedne vode, ki vsebujejo nevarne snovi, z odlagališč","*",1285]
["19 08 06","Nasičene ali izrabljene smole ionskih izmenjevalnikov","*",1286]
["19 08 07","Raztopine in mulji iz regeneracije ionskih izmenjevalnikov","*",1287]
["19 08 08","Odpadki, ki vsebujejo težke kovine, iz membranskih sistemov","*",1288]
["19 08 10","Mešanice masti in olj iz ločevanja olja in vode, ki niso navedene v 19 08 09","*",1289]
["19 08 11","Blato iz biološke obdelave industrijskih odpadnih voda, ki vsebuje nevarne snovi","*",1290]
["19 08 13","Blato iz druge obdelave industrijskih odpadnih voda, ki vsebuje nevarne snovi","*",1291]
["19 10 03","Lahka frakcija in prah, ki vsebujeta nevarne snovi","*",1292]
["19 10 05","Druge frakcije, ki vsebujejo nevarne snovi","*",1293]
["19 11 01","Izrabljene filtrirne zemlje","*",1294]
["19 11 02","Kisli katrani","*",1295]
["19 11 03","Odpadne vodne raztopine","*",1296]
["19 11 04","Odpadki iz čiščenja goriva z bazami (lugi)","*",1297]
["19 11 05","Blato, ki vsebuje nevarne snovi, iz čiščenja odpadnih voda na kraju nastanka","*",1298]
["19 11 07","Odpadki iz čiščenja dimnih plinov","*",1299]
["19 12 06","Les, ki vsebuje nevarne snovi","*",1300]
["19 12 11","Drugi odpadki (vključno z mešanicami materialov), ki vsebujejo nevarne snovi, iz mehanske obdelave odpadkov","*",1301]
["19 13 01","Trdni odpadki, ki vsebujejo nevarne snovi, iz sanacije tal","*",1302]
["19 13 03","Mulji, ki vsebujejo nevarne snovi, iz sanacije tal","*",1303]
["19 13 05","Mulji, ki vsebujejo nevarne snovi, iz sanacije podtalnice","*",1304]
["19 13 07","Odpadne vodne raztopine in vodni koncentrati, ki vsebujejo nevarne snovi, iz sanacije podtalnice","*",1305]
["20 01 13","Topila","*",1306]
["20 01 14","Kisline","*",1307]
["20 01 15","Alkalije","*",1308]
["20 01 17","Fotokemikalije","*",1309]
["20 01 19","Pesticidi","*",1586]
["20 01 21","Fluorescenčne cevi in drugi odpadki, ki vsebujejo živo srebro","*",1587]
["20 01 23","Zavržena oprema, ki vsebuje fluorokloroogljikovodike","*",1588]
["20 01 26","Olje in masti, ki niso navedeni v 20 01 25","*",1589]
["20 01 27","Barve, tiskarske barve, lepila in smole, ki vsebujejo nevarne snovi","*",1590]
["20 01 29","Čistila (detergenti), ki vsebujejo nevarne snovi","*",1591]
["20 01 31","Citotoksična in citostatična zdravila","*",1592]
["20 01 33","Baterije in akumulatorji, navedeni v 16 06 01, 16 06 02 ali 16 06 03, in nesortirane baterije in akumulatorji, ki vsebujejo te baterije","*",1593]
["20 01 35","Zavržena električna in elektronska oprema, ki vsebuje nevarne snovi (3), ki ni navedena v 20 01 21 in 20 01 23","*",1594]
["20 01 37","Les, ki vsebuje nevarne snovi","*",1595]

{"sheet":"ODP_sifrant_prilog","index":13,"n_rows":9,"n_cols":7,"rows_kept":9,"cut":false,"hidden":true,"merged":[]}
["ID","SPG_ID","Priloga",null,"Priloga - krajši naziv","ID","SPG_ID"]
[730,39,"06. Pisno pooblastilo stranke pooblaščencu",null,"1. Pisno pooblastilo stranke pooblaščencu",730,39]
[573,249,"1. Podatki o vrsti osebne varovalne opreme in dokazila o razpolaganju  z navedeno vrsto osebne varovalne opreme skupaj s certifikatom o skladnosti opreme (Pravilnik o varovanju delavcev pred tveganji zaradi izpostavljenosti azbestu pri delu, UL RS št. 93/2005)\r\n (azbest)",null,"2. Podatki o vrsti osebne varovalne opreme in dokazila o razpolaganju  z navedeno vrsto osebne varovalne opreme",573,249]
[574,250,"2. Podatki o napravah in opremi za preprečevanje sproščanja azbesta v okolje in dokazila o razpolaganju z navedeno opremo in napravami \r\n(Uredba o pogojih, pod katerimi se lahko pri rekonstrukciji ali odstranitvi objektov in pri vzdrževalnih delih na objektih, instalacijah in napravah odstranjujejo materiali, ki vsebujejo azbest) (azbest)",null,"3. Podatki o napravah in opremi za preprečevanje sproščanja azbesta v okolje in dokazila o razpolaganju z navedeno opremo in napravami \r",574,250]
[569,251,"3. Dokazila, da se zagotavlja, da koncentracija azbestnih vlaken na območju odstranjevanja azbesta  ne bo presegla mejnih vrednosti, ki jih določa predpis o varovanju delavcev pred azbestom (azbest)",null,"4. Dokazila,  da koncentracija azbestnih vlaken na območju odstranjevanja azbesta  ne bo presegla mejnih vrednosti, ki jih določa predpis o varovanju delavcev pred azbestom",569,251]
[549,269,"4. Podatki o merilni tehniki za določanje koncentracije azbestnih vlaken v zraku (azbest)",null,"5. Podatki o merilni tehniki za določanje koncentracije azbestnih vlaken v zraku",549,269]
[570,252,"5. Podatki o opremi za ravnaje z odpadki in dokazila o razpolaganju z opremo (Uredba o ravnanju z odpadki, ki vsebujejo azbest) (azbest)",null,"6. Podatki o opremi za ravnaje z odpadki in dokazila o razpolaganju z opremo",570,252]
[571,253,"6. Podatki o načinih odstranjevanja materialov, ki vsebujejo azbest, ter nadzoru med odstranjevanjem teh materialov (azbest)",null,"7. Podatki o načinih odstranjevanja materialov, ki vsebujejo azbest, ter nadzoru med odstranjevanjem teh materialov",571,253]
[572,254,"7. Podatki o načinu odstranjevanja azbestnih odpadkov (azbest)",null,"8. Podatki o načinu odstranjevanja azbestnih odpadkov",572,254]

{"sheet":"priloga2","index":14,"n_rows":8,"n_cols":3,"rows_kept":8,"cut":false,"hidden":false,"merged":[[1,1,1,2]]}
[]
[null,"Priloga 2: Izdelki iz azbest cementa"]
[]
[null,"Izdelek","Območje odstranjevanja"]
[null,"Plošče velikega formata, ravne ali valovite, strešne plošče malega formata.","Strehe"]
[null,"Fasadne plošče","Fasade"]
[null,"Azbest cementne stene in stropi","Stropi in stene v bližini kurišč, grelcev za vodo, peči, štedilnikov"]
[null,"Cementne cevi in kolena, spoji","Vodovodne in kanalizacijske cevi"]

{"sheet":"priloga3","index":15,"n_rows":7,"n_cols":3,"rows_kept":7,"cut":false,"hidden":false,"merged":[[1,1,1,2]]}
[]
[null,"Priloga 3: Drugi azbestni izdelki"]
[]
[null,"Izdelek","Območje odstranjevanja"]
[null,"Vinilne talne azbestne obloge","Tla"]
[null,"Asfaltne talne azbestne obloge","Tla"]
[null,"Veziva,\nPolnila,\nkiti,\npaste,\nbarve, premazi za strehe"]

{"sheet":"prevent_share","index":16,"n_rows":2,"n_cols":3,"rows_kept":2,"cut":false,"hidden":true,"merged":[]}
["a","b","c"]
[1,2,3]

{"sheet":"sifrant_ostalo","index":17,"n_rows":58,"n_cols":2,"rows_kept":58,"cut":false,"hidden":true,"merged":[]}
["Registracija za izvajanje dejavnosti  (na zavihku stranka)"]
["43.990"]
["43.110"]
["43.990 in 43.110"]
["43.910"]
["43.910 in 43.990"]
["43.910 in 43.110"]
["43.990 in 43.110 in 43.910"]
[]
["Upravljavec zbirnega centra (izbrati eno od navedenih možnosti):"]
["vlagatelj je upravljavec","Upravjavec"]
["vlagatelj je lastnik in upravljavec","Lastnik in upravljavec"]
[]
["Izbor da/ne"]
["da"]
["ne"]
[]
[]
["Vrsta vloge OVD (na zavihku vrsta_vloge)"]
["prvo pridobivanje OVD"]
["sprememba OVD"]
[]
[]
["Lastnik ali zakupnik na ODP_lokacije_vnosa_zemljine"]
["lastnik"]
["zakupnik"]
[]
[]
["Tip prosilca na ODP_vnos_zemlj"]
["investitor"]
["pravna oseba ali SP"]
["investitor in pravna oseba ali SP"]
["Priloga 3 na zavihku vrsta _vloge"]
["1. Vinilne talne azbestne obloge"]
["2. Asfaltne talne azbestne obloge"]
["3. Veziva; polnila; kiti; paste; barve; premazi za strehe"]
["Priloga 1 na zavihku vrsta _vloge"]
["1. Lahke plošče; ki vsebujejo azbest (skodle iz strešne lepenke)"]
["2. Brizgani ometi"]
["3. Ročno nanešeni ometi"]
["4. Izolacijske plošče; ki vsebujejo azbest (lahke gradbene plošče; plošče za zaščito pred ognjem; plošče za zaščito pred požarom)"]
["5. Gradbeni kemični izdelki; ki vsebujejo azbest (tesnilne mase; smole; lepila)"]
["6. Tesnilna in izolacijska masa"]
["7. Platno za ovijanje"]
["8. Valovita lepenka iz azbesta"]
["9. Papirni trakovi"]
["10. Valjani papirni trakovi"]
["11. Lepenka"]
["12. Kiti za stike; površinski kiti; polnilne in zalivne mase"]
["13. Tesnilne mase; plastične mase"]
["14. Lepila; barve"]
["15. Brizgana in ročno nanešena izolacija"]
["16. Tkanine"]
["Priloga 2 na zavihku vrsta _vloge"]
["1. Plošče velikega formata; ravne ali valovite; strešne plošče malega formata"]
["2. Fasadne plošče"]
["3. Azbest cementne stene in stropi"]
["4. Cementne cevi in kolena; spoji"]